fUSD/lending_fUSD_20240614
["ID","MTS","AMOUNT","RATE_DAILY","PERIOD"]
[329425918,1718331050083,-500.0,0.00024109,2]
[329425920,1718331050100,-500.0,0.00024109,2]
[329425922,1718331050112,-500.0,0.00024109,2]
[329425924,1718331050124,-500.0,0.00024109,2]
[329425926,1718331050141,-500.0,0.00024109,2]
[329425928,1718331050154,-500.0,0.00024109,2]
[329425929,1718331050171,-500.0,0.00024109,2]
[329425931,1718331050196,-500.0,0.00024109,2]
[329425933,1718331050218,-500.0,0.00024109,2]
[329425935,1718331050232,-500.0,0.00024109,2]
[329425936,1718331050260,-500.0,0.00024109,2]
[329425937,1718331050271,-500.0,0.00024109,2]
[329425938,1718331050283,-500.0,0.00024109,2]
[329425939,1718331050309,-500.0,0.00024109,2]
[329425940,1718331050341,-500.0,0.00024109,2]
[329425941,1718331050354,-500.0,0.00024109,2]
[329425942,1718331050371,-500.0,0.00024109,2]
[329425943,1718331050390,-500.0,0.00024109,2]
[329425944,1718331050402,-500.0,0.00024109,2]
[329425945,1718331050416,-500.0,0.00024109,2]
[329425946,1718331050444,-500.0,0.00024109,2]
[329425947,1718331050482,-500.0,0.00024109,2]
[329425948,1718331050515,-500.0,0.00024109,2]
[329425949,1718331050547,-500.0,0.00024109,2]
[329425950,1718331050560,-500.0,0.00024109,2]
[329425951,1718331050573,-500.0,0.00024109,2]
[329425952,1718331050585,-500.0,0.00024109,2]
[329425953,1718331050605,-500.0,0.00024109,2]
[329425954,1718331050616,-712.6,0.00024109,2]
[329425955,1718331050632,-611.06,0.00024109,2]
[329425956,1718331050646,-1974.11,0.00024109,2]
[329425957,1718331050662,-500.0,0.00024109,2]
[329425958,1718331050675,-500.0,0.00024109,2]
[329425959,1718331050704,-500.0,0.00024109,2]
[329425960,1718331050720,-500.0,0.00024109,2]
[329425961,1718331050731,-500.0,0.00024109,2]
[329425962,1718331050747,-500.0,0.00024109,2]
[329425963,1718331050760,-560.2,0.00024109,2]
[329425964,1718331050771,-500.0,0.00024109,2]
[329425965,1718331050781,-500.0,0.00024109,2]
[329425966,1718331050793,-5648.89,0.00024109,2]
[329425967,1718331050804,-500.0,0.00024109,2]
[329425968,1718331050836,-500.0,0.00024109,2]
[329425969,1718331050847,-3729.66,0.00024109,2]
[329425970,1718331050860,-500.0,0.00024109,2]
[329425971,1718331050884,-500.0,0.00024109,2]
[329425972,1718331050904,-1092.66,0.00024109,2]
[329425973,1718331050916,-500.0,0.00024109,2]
[329425974,1718331050928,-651.0,0.00024109,2]
[329425975,1718331050939,-500.0,0.00024109,2]
[329425976,1718331050951,-952.78,0.00024109,2]
[329425977,1718331050962,-1899.84,0.00024109,2]
[329425978,1718331050982,-1702.56,0.00024109,2]
[329425979,1718331050997,-500.0,0.00024109,2]
[329425980,1718331051022,-684.5,0.00024109,2]
[329425981,1718331051058,-1455.7,0.00024109,2]
[329425982,1718331051081,-500.0,0.00024109,2]
[329425983,1718331051101,-500.0,0.00024109,2]
[329425984,1718331051118,-500.0,0.00024109,2]
[329425985,1718331051130,-675.94,0.00024109,2]
[329425986,1718331051142,-500.0,0.00024109,2]
[329425987,1718331051156,-500.0,0.00024109,2]
[329425988,1718331051167,-500.0,0.00024109,2]
[329425989,1718331051178,-500.0,0.00024109,2]
[329425990,1718331051190,-766.11,0.00024109,2]
[329425991,1718331051201,-500.0,0.00024109,2]
[329425992,1718331051212,-557.19,0.00024109,2]
[329425993,1718331051223,-819.17,0.00024109,2]
[329425994,1718331051240,-619.35,0.00024109,2]
[329425995,1718331051256,-500.0,0.00024109,2]
[329425996,1718331051266,-765.96,0.00024109,2]
[329425997,1718331051281,-500.0,0.00024109,2]
[329425998,1718331051292,-789.31,0.00024109,2]
[329425999,1718331051465,-605.16402601,0.00024109,2]
[329426000,1718331051492,-500.0,0.00024109,2]
[329426001,1718331051529,-844.94,0.00024109,2]
[329426002,1718331051547,-500.0,0.00024109,2]
[329426003,1718331051557,-4543.89,0.00024109,2]
[329426004,1718331051567,-10561.35,0.00024109,2]
[329426005,1718331051584,-3480.4,0.00024109,2]
[329426006,1718331051598,-2193.79,0.00024109,2]
[329426007,1718331051610,-514.1,0.00024109,2]
[329426008,1718331051641,-500.0,0.00024109,2]
[329426009,1718331051666,-500.0,0.00024109,2]
[329426010,1718331051685,-516.76,0.00024109,2]
[329426011,1718331051699,-864.53,0.00024109,2]
[329426012,1718331051712,-685.71693844,0.00024109,2]
[329426013,1718331051953,-280.98915394,0.00024109,2]
[329426014,1718331051971,-174.17390762,0.00024109,2]
[329426015,1718331051983,-230.24536808,0.00024109,2]
[329426016,1718331052026,-269.75463192,0.00024109,2]
[329426017,1718331052056,-7.1509561,0.00024109,2]
[329426018,1718331052079,-492.8490439,0.00024109,2]
[329426019,1718331052131,-540.74816533,0.00024109,2]
[329426020,1718331052170,-1083.05183467,0.00024109,2]
[329426021,1718331052186,-500.0,0.00024109,2]
[329426022,1718331052218,-500.0,0.00024109,2]
[329426023,1718331052229,-187.06001844,0.00024109,2]
[329426037,1718332049295,-169.27557674,0.00019425,2]
[329426038,1718332049335,-81.19893798,0.00019524,2]
[329426043,1718332233014,-169.27557674,0.00019425,2]
[329426044,1718332233030,-150.0,0.00019524,2]
[329426045,1718332233051,-88.16548869,0.00019525,2]
[329426046,1718332233075,-731.32,0.00019525,2]
[329426047,1718332233098,-606.4,0.00019525,2]
[329426048,1718332233121,-1412.77481131,0.00019525,2]
[329426049,1718332233138,-479.43,0.00020242,2]
[329426050,1718332233170,-116.97130725,0.00020888,2]
[329426051,1718332233190,-383.01869275,0.00020888,2]
[329426052,1718332233206,-150.99,0.00020888,2]
[329426053,1718332233221,-150.99,0.00020888,2]
[329426054,1718332233234,-498.0,0.000209,5]
[329426055,1718332233260,-302.78590936,0.00021455,2]
[329426056,1718332233279,-232.25,0.00022099,2]
[329426057,1718332233296,-250.0,0.00022133,2]
[329426058,1718332233322,-250.0,0.00022151,2]
[329426059,1718332233360,-150.0,0.00022319,2]
[329426060,1718332233372,-760.64,0.00022334,2]
[329426061,1718332233392,-172.01,0.00022434,2]
[329426062,1718332233418,-479.43,0.00022506,2]
[329426063,1718332233436,-33.06528137,0.00022525,2]
[329426064,1718332233456,-272.31471863,0.00022525,2]
[329426065,1718332233473,-172.12,0.00022886,2]
[329426066,1718332233486,-51.86204106,0.00022901,2]
[329426067,1718332233556,-676.1,0.00022901,2]
[329426068,1718332233574,-766.70047964,0.00022901,2]
[329426069,1718332233728,-889.2382371,0.00022901,2]
[329426070,1718332233813,-2101.31285773,0.00022901,2]
[329426071,1718332233829,-2579.13024288,0.00022901,2]
[329426072,1718332233854,-752.35031756,0.00022901,2]
[329426073,1718332233872,-671.44352458,0.00022901,2]
[329426074,1718332233887,-598.43792837,0.00022902,2]
[329426075,1718332233901,-207.54659734,0.00023143,2]
[329426076,1718332233915,-400.0,0.000238,8]
[329426077,1718332233928,-7186.2745,0.00023807,2]
[329426078,1718332233944,-2736.652,0.00023807,2]
[329426079,1718332233962,-800.0,0.000239,8]
[329426080,1718332233976,-2493.0,0.000239,3]
[329426081,1718332233992,-440.44712667,0.000239,3]
[329426082,1718332234083,-230.55287333,0.000239,3]
[329426083,1718332234130,-247.43577857,0.00023906,5]
[329426084,1718332234143,-150.4313481,0.00023906,2]
[329426085,1718332234176,-446.45853724,0.00023906,2]
[329426086,1718332234210,-38.29087613,0.00023906,2]
[329426087,1718332234227,-4959.62726203,0.00023907,2]
[329426088,1718332234406,-3289.73579581,0.00023907,2]
[329426089,1718332234421,-442.695,0.00023907,2]
[329426090,1718332234442,-1533.16988502,0.00023907,2]
[329426091,1718332234467,-10808.08059513,0.00023907,2]
[329426092,1718332234496,-568.36,0.00023907,2]
[329426093,1718332234828,-1303.32963384,0.00023907,2]
[329426094,1718332234844,-716.81786088,0.00023907,2]
[329426095,1718332234886,-284.65867738,0.00023907,2]
[329426096,1718332234918,-1084.00000008,0.00023907,2]
[329426097,1718332239335,-3854.38,0.00023907,2]
[329426100,1718332240548,-33858.97049631,0.00023907,2]
[329426104,1718332240657,-1624.56817508,0.00023907,2]
[329426232,1718332243548,-509.999985,0.00023907,2]
[329426325,1718332245156,-35161.60663344,0.00023907,2]
[329426327,1718332245171,-847.81303216,0.00023909,2]
[329426328,1718332245182,-12150.2888,0.00023909,2]
[329426330,1718332245195,-12730.91091576,0.00024,2]
[329426331,1718332245210,-398.777123,0.00024003,2]
[329426333,1718332245230,-23596.56545603,0.00024009,2]
[329426344,1718332245357,-1920.20630462,0.00024009,2]
[329426368,1718332245720,-615.27254102,0.00024009,2]
[329426370,1718332245742,-848.067256,0.00024009,2]
[329426378,1718332245898,-2629.16391402,0.00024009,2]
[329426380,1718332245916,-607.444206,0.00024009,2]
[329426382,1718332245939,-1046.75081597,0.00024009,2]
[329426385,1718332245951,-15845.80377634,0.00024009,2]
[329426387,1718332245966,-20913.8813418,0.00024009,2]
[329426389,1718332245982,-333.43584096,0.00024009,2]
[329426391,1718332245997,-2710.0674761,0.00024009,2]
[329426393,1718332246010,-474.60087684,0.00024009,2]
[329426552,1718332248483,-1100.8999995,0.00024009,2]
[329426554,1718332248497,-4175.86929442,0.00024009,2]
[329427044,1718332424391,783744.34425196,0.00014,2]
[329427046,1718332444742,766.32901309,0.000118,2]
[329427047,1718332451328,2115.76184575,0.00011,2]
[329427048,1718332528334,2438.58032575,0.00013297,2]
[329427049,1718332633373,209.79743686,0.0001,2]
[329427050,1718333176069,-162.642962,0.00017152,2]
[329427051,1718333176097,-10544.87497123,0.00017238,2]
[329427052,1718333176132,-150.0,0.00017239,2]
[329427053,1718333176167,-2824.58309854,0.00017239,2]
[329427054,1718333176211,-1383.0,0.00017241,2]
[329427055,1718333321804,961.91940225,0.00016379,2]
[329427056,1718333353849,155.0,0.00017259,2]
[329427074,1718333432934,-735.4419367,0.00016379,2]
[329427075,1718333432950,-560.2023371,0.00016379,2]
[329427076,1718333433255,-474.46635641,0.00016379,2]
[329427077,1718333433275,-315.0,0.00016379,2]
[329427078,1718333433291,-1420.97727954,0.00016379,2]
[329427079,1718333433587,-1339.32568212,0.00016379,2]
[329427080,1718333433610,-351.68374011,0.00016379,2]
[329427081,1718333433625,-521.97670531,0.00016379,2]
[329427082,1718333433880,-1433.51391152,0.00016379,2]
[329427083,1718333433897,-18762.08940248,0.00016379,2]
[329427084,1718333434018,-2719.05049637,0.00016379,2]
[329427085,1718333434037,-12611.04820383,0.00016379,2]
[329427086,1718333434053,-7800.69533894,0.00016379,2]
[329427087,1718333434069,-20906.75793379,0.00016379,2]
[329427088,1718333434481,-78699.10507935,0.00016379,2]
[329427089,1718333434671,-2360.35387545,0.00016379,2]
[329427090,1718333434817,-569.99999994,0.00016379,2]
[329427091,1718333434833,-351.899999,0.00016379,2]
[329427092,1718333434864,-410.78637503,0.00016379,2]
[329427093,1718333434892,-297.182565,0.00016379,2]
[329427094,1718333434906,-422.76314946,0.00016379,2]
[329427095,1718333434923,-2478.29101073,0.00016379,2]
[329427096,1718333434939,-556.70320369,0.00016379,2]
[329427097,1718333434954,-10232.86878314,0.00016379,2]
[329427105,1718333438347,-2145.76887824,0.00016379,2]
[329427106,1718333438361,-538.07843301,0.00016379,2]
[329427107,1718333438376,-494.72760592,0.00016379,2]
[329427108,1718333438404,-1275.36257132,0.00016379,2]
[329427109,1718333438468,-16318.24771686,0.00016379,2]
[329427110,1718333438888,-2072.10473281,0.00016379,2]
[329427111,1718333438901,-1236.89030779,0.00016379,2]
[329427112,1718333438914,-2300.41416439,0.00016379,2]
[329427113,1718333438929,-1651.94935281,0.00016379,2]
[329427114,1718333438945,-1145.08013776,0.00016379,2]
[329427115,1718333438961,-3816.05315889,0.00016379,2]
[329427116,1718333438977,-746.89027862,0.00016379,2]
[329427117,1718333439040,-6793.64778067,0.00016379,2]
[329427118,1718333439294,-621.94856121,0.00016379,2]
[329427119,1718333439336,-279.01330879,0.00016379,2]
[329427120,1718333439357,-1392.37172164,0.00016379,2]
[329427121,1718333439403,-785.23100942,0.00016379,2]
[329427122,1718333439618,-1637.09935816,0.00016379,2]
[329427123,1718333439649,-4440.864085,0.00016379,2]
[329427124,1718333440046,-1169.55400002,0.00016379,2]
[329427192,1718333442717,-3885.68981645,0.00016379,2]
[329427193,1718333442970,-449.51348588,0.00016379,2]
[329427195,1718333444108,-88470.18088719,0.00016379,2]
[329427196,1718333444131,-3730.40535244,0.00019451,2]
[329427197,1718333444162,-1285.28605594,0.00019723,2]
[329427198,1718333444193,-155.95090983,0.00019723,2]
[329427199,1718333444213,-1262.4161175,0.00019723,2]
[329427200,1718333444230,-388.19843471,0.00019723,2]
[329427201,1718333444244,-406.36110445,0.00019723,2]
[329427202,1718333444258,-1010.11071329,0.00019723,2]
[329427203,1718333444321,-283.14081319,0.00019723,2]
[329427204,1718333444351,-166.799397,0.00019723,2]
[329427205,1718333444364,-241.79566205,0.00019723,2]
[329427206,1718333444378,-5586.98275761,0.00019723,2]
[329427207,1718333444417,-786.90809948,0.00019723,2]
[329427208,1718333444435,-155.13649833,0.00019723,2]
[329427209,1718333444472,-35597.87375105,0.00019724,2]
[329427210,1718333444483,-141415.62732409,0.00019725,2]
[329427211,1718333444510,-937.2271183,0.00019725,2]
[329427212,1718333444619,-13280.26729622,0.00019725,2]
[329427213,1718333444648,-486.22456388,0.0002,2]
[329427214,1718333444677,-464.41,0.00020393,2]
[329427215,1718333444689,-11049.0,0.00021,5]
[329427216,1718333444701,-560.97,0.000217,2]
[329427217,1718333444720,-244.3,0.00021714,2]
[329427218,1718333444744,-193.54,0.00021918,2]
[329427219,1718333444757,-250.0,0.00022227,2]
[329427220,1718333444773,-464.41,0.00022656,2]
[329427221,1718333444795,-200.0,0.0002318,2]
[329427222,1718333444806,-865.65,0.00023288,2]
[329427223,1718333444818,-2489.0,0.000233,3]
[329427224,1718333444855,-21921.66391273,0.000236,2]
[329427225,1718333444879,-2728.98249,0.0002377,2]
[329427226,1718333444898,-152.82,0.00023799,2]
[329427227,1718333444910,-300.0,0.000238,8]
[329427228,1718333444943,-763.29101009,0.000238,2]
[329427229,1718333444964,-222719.35142424,0.00023809,2]
[329427230,1718333444986,-692.39556821,0.00023809,2]
[329427231,1718333445001,-625.89576,0.00023809,2]
[329427232,1718333445016,-1685.825,0.00023809,2]
[329427233,1718333445070,-19276.53224755,0.00023809,2]
[329427234,1718333445092,-700.0,0.000239,8]
[329427235,1718333445104,-4086.49324989,0.00023907,2]
[329427236,1718333445123,-355.07925141,0.00023907,2]
[329427237,1718333445151,-1258.30414148,0.00023909,2]
[329427238,1718333445224,-28621.54875852,0.00023909,2]
[329427239,1718333445244,-4310.90983593,0.00023984,2]
[329427240,1718333445266,-2242.0,0.00024,2]
[329427241,1718333445284,-12730.91091576,0.00024,2]
[329427242,1718333445301,-443.54047605,0.00024,3]
[329427243,1718333445329,-268.27796725,0.00024006,2]
[329427244,1718333445350,-367.56358179,0.00024006,2]
[329427245,1718333445363,-867.36928579,0.00024006,2]
[329427246,1718333445375,-155.34196997,0.00024006,2]
[329427247,1718333445386,-318.973148,0.00024006,2]
[329427248,1718333445400,-2369.42831983,0.00024006,2]
[329427249,1718333445415,-2195.01899183,0.00024006,2]
[329427250,1718333445429,-569.05878219,0.00024007,2]
[329427251,1718333445441,-1000.0,0.00024009,2]
[329427252,1718333445457,-152.82,0.00024099,2]
[329427253,1718333445470,-4446.54749549,0.00024107,2]
[329427254,1718333445497,-155.28179742,0.00024107,2]
[329427255,1718333445560,-1890.73321414,0.00024107,2]
[329427256,1718333445572,-336.42522413,0.00024107,2]
[329427257,1718333445632,-723.91813565,0.00024109,2]
[329427258,1718333445656,-451.05070953,0.00024109,2]
[329427259,1718333445670,-630.66,0.00024109,2]
[329427260,1718333445693,-500.0,0.00024109,2]
[329427261,1718333445714,-500.0,0.00024109,2]
[329427262,1718333445736,-510.41276379,0.00024109,2]
[329427263,1718333445755,-500.0,0.00024109,2]
[329427264,1718333445775,-500.0,0.00024109,2]
[329427265,1718333445791,-500.0,0.00024109,2]
[329427266,1718333445806,-500.0,0.00024109,2]
[329427267,1718333445821,-500.0,0.00024109,2]
[329427268,1718333445832,-500.0,0.00024109,2]
[329427269,1718333445869,-508.94,0.00024109,2]
[329427270,1718333445881,-509.02600914,0.00024109,2]
[329427271,1718333445898,-500.0,0.00024109,2]
[329427272,1718333445914,-500.0,0.00024109,2]
[329427273,1718333445945,-500.0,0.00024109,2]
[329427274,1718333445976,-500.0,0.00024109,2]
[329427275,1718333446006,-500.0,0.00024109,2]
[329427276,1718333446021,-449.39023506,0.00024109,2]
[329427277,1718333446061,-385.90313674,0.00024109,2]
[329427278,1718333446088,-500.0,0.00024109,2]
[329427279,1718333446105,-507.7888766,0.00024109,2]
[329427280,1718333446145,-500.0,0.00024109,2]
[329427281,1718333446156,-500.0,0.00024109,2]
[329427282,1718333446168,-513.15630317,0.00024109,2]
[329427283,1718333446180,-500.0,0.00024109,2]
[329427285,1718333446200,-500.0,0.00024109,2]
[329427286,1718333446233,-506.65145702,0.00024109,2]
[329427287,1718333446248,-500.0,0.00024109,2]
[329427288,1718333446292,-260.22,0.00024109,2]
[329427289,1718333446330,-500.0,0.00024109,2]
[329427290,1718333446349,-500.0,0.00024109,2]
[329427291,1718333446359,-510.58143466,0.00024109,2]
[329427292,1718333446370,-504.3031695,0.00024109,2]
[329427293,1718333446383,-500.0,0.00024109,2]
[329427294,1718333446400,-512.57297818,0.00024109,2]
[329427295,1718333446415,-512.52663748,0.00024109,2]
[329427296,1718333446435,-500.0,0.00024109,2]
[329427297,1718333446450,-500.0,0.00024109,2]
[329427298,1718333446462,-500.0,0.00024109,2]
[329427301,1718333446511,-555.42,0.00024109,2]
[329427302,1718333446534,-500.0,0.00024109,2]
[329427303,1718333446545,-500.0,0.00024109,2]
[329427304,1718333446556,-500.0,0.00024109,2]
[329427305,1718333446567,-500.0,0.00024109,2]
[329427306,1718333446578,-500.0,0.00024109,2]
[329427307,1718333446588,-500.0,0.00024109,2]
[329427308,1718333446600,-500.0,0.00024109,2]
[329427309,1718333446612,-500.0,0.00024109,2]
[329427310,1718333446624,-500.0,0.00024109,2]
[329427311,1718333446637,-500.0,0.00024109,2]
[329427312,1718333446668,-500.0,0.00024109,2]
[329427313,1718333446680,-500.0,0.00024109,2]
[329427314,1718333446691,-500.0,0.00024109,2]
[329427315,1718333446702,-500.0,0.00024109,2]
[329427316,1718333446713,-500.0,0.00024109,2]
[329427318,1718333446723,-525.37029807,0.00024109,2]
[329427319,1718333446733,-500.0,0.00024109,2]
[329427320,1718333446744,-500.0,0.00024109,2]
[329427321,1718333446771,-500.0,0.00024109,2]
[329427322,1718333446805,-500.0,0.00024109,2]
[329427323,1718333446817,-500.0,0.00024109,2]
[329427324,1718333446851,-500.0,0.00024109,2]
[329427325,1718333446873,-500.0,0.00024109,2]
[329427326,1718333446911,-500.0,0.00024109,2]
[329427328,1718333446962,-500.0,0.00024109,2]
[329427330,1718333446993,-500.0,0.00024109,2]
[329427332,1718333447005,-500.0,0.00024109,2]
[329427334,1718333447017,-500.0,0.00024109,2]
[329427336,1718333447029,-500.0,0.00024109,2]
[329427338,1718333447042,-214.91166936,0.00024109,2]
[329427340,1718333447054,-500.0,0.00024109,2]
[329427342,1718333447066,-500.0,0.00024109,2]
[329427344,1718333447084,-500.0,0.00024109,2]
[329427347,1718333447122,-500.0,0.00024109,2]
[329427349,1718333447161,-500.0,0.00024109,2]
[329427352,1718333447173,-500.0,0.00024109,2]
[329427357,1718333447196,-500.0,0.00024109,2]
[329427360,1718333447281,-500.0,0.00024109,2]
[329427362,1718333447294,-500.0,0.00024109,2]
[329427364,1718333447329,-500.0,0.00024109,2]
[329427367,1718333447362,-500.0,0.00024109,2]
[329427369,1718333447388,-500.0,0.00024109,2]
[329427371,1718333447416,-500.0,0.00024109,2]
[329427373,1718333447428,-150.0,0.00024109,2]
[329427376,1718333447440,-500.0,0.00024109,2]
[329427379,1718333447486,-500.0,0.00024109,2]
[329427382,1718333447513,-500.0,0.00024109,2]
[329427383,1718333447560,-500.0,0.00024109,2]
[329427384,1718333447588,-355.40483694,0.00024109,2]
[329427386,1718333447599,-500.0,0.00024109,2]
[329427388,1718333447611,-500.0,0.00024109,2]
[329427390,1718333447624,-500.0,0.00024109,2]
[329427392,1718333447636,-500.0,0.00024109,2]
[329427394,1718333447652,-500.0,0.00024109,2]
[329427397,1718333447675,-500.0,0.00024109,2]
[329427399,1718333447686,-500.0,0.00024109,2]
[329427400,1718333447703,-500.0,0.00024109,2]
[329427402,1718333447728,-500.0,0.00024109,2]
[329427403,1718333447742,-500.0,0.00024109,2]
[329427404,1718333447754,-500.0,0.00024109,2]
[329427405,1718333447780,-500.0,0.00024109,2]
[329427406,1718333447804,-500.0,0.00024109,2]
[329427407,1718333447820,-500.0,0.00024109,2]
[329427408,1718333447832,-500.0,0.00024109,2]
[329427410,1718333447864,-500.0,0.00024109,2]
[329427413,1718333447912,-162.29401586,0.00024109,2]
[329427415,1718333447923,-500.0,0.00024109,2]
[329427417,1718333447935,-500.0,0.00024109,2]
[329427419,1718333447949,-500.0,0.00024109,2]
[329427421,1718333447965,-500.0,0.00024109,2]
[329427423,1718333447980,-500.0,0.00024109,2]
[329427427,1718333448042,-500.0,0.00024109,2]
[329427428,1718333448063,-794.91,0.00024109,2]
[329427429,1718333448085,-500.0,0.00024109,2]
[329427430,1718333448120,-500.0,0.00024109,2]
[329427431,1718333448144,-500.0,0.00024109,2]
[329427432,1718333448180,-500.0,0.00024109,2]
[329427433,1718333448193,-500.0,0.00024109,2]
[329427434,1718333448242,-591.65,0.00024109,2]
[329427435,1718333448274,-500.0,0.00024109,2]
[329427436,1718333448297,-5413.52,0.00024109,2]
[329427437,1718333448318,-356.25884119,0.00024109,2]
[329427438,1718333448655,-267.61115881,0.00024109,2]
[329427439,1718333448668,-500.0,0.00024109,2]
[329427440,1718333448685,-1891.86,0.00024109,2]
[329427441,1718333448697,-500.0,0.00024109,2]
[329427442,1718333448710,-1631.62,0.00024109,2]
[329427443,1718333448721,-500.0,0.00024109,2]
[329427444,1718333448734,-934.34,0.00024109,2]
[329427445,1718333448748,-913.08,0.00024109,2]
[329427446,1718333448768,-1047.13,0.00024109,2]
[329427447,1718333448801,-500.0,0.00024109,2]
[329427448,1718333448817,-585.6,0.00024109,2]
[329427449,1718333448833,-556.24,0.00024109,2]
[329427450,1718333448855,-3574.25,0.00024109,2]
[329427451,1718333448871,-500.0,0.00024109,2]
[329427452,1718333448885,-647.78,0.00024109,2]
[329427453,1718333448912,-1395.04,0.00024109,2]
[329427454,1718333448924,-500.0,0.00024109,2]
[329427455,1718333448936,-500.0,0.00024109,2]
[329427456,1718333448946,-655.98,0.00024109,2]
[329427457,1718333448966,-238.24888687,0.00024109,2]
[329427458,1718333448981,-536.86,0.00024109,2]
[329427459,1718333448993,-500.0,0.00024109,2]
[329427460,1718333449006,-734.19,0.00024109,2]
[329427461,1718333449021,-1820.68,0.00024109,2]
[329427462,1718333449032,-500.0,0.00024109,2]
[329427463,1718333449078,-500.0,0.00024109,2]
[329427464,1718333449113,-4354.57,0.00024109,2]
[329427465,1718333449156,-3214.73,0.00024109,2]
[329427466,1718333449176,-536.2,0.00024109,2]
[329427467,1718333449198,-500.0,0.00024109,2]
[329427468,1718333449237,-500.0,0.00024109,2]
[329427469,1718333449254,-500.0,0.00024109,2]
[329427470,1718333449271,-10121.29,0.00024109,2]
[329427471,1718333449283,-500.0,0.00024109,2]
[329427472,1718333449344,-686.6,0.00024109,2]
[329427473,1718333449366,-545.59,0.00024109,2]
[329427474,1718333449424,-500.0,0.00024109,2]
[329427475,1718333449449,-500.0,0.00024109,2]
[329427476,1718333449465,-734.04,0.00024109,2]
[329427477,1718333449478,-500.0,0.00024109,2]
[329427478,1718333449516,-9877.97,0.00024109,2]
[329427479,1718333449546,-785.04,0.00024109,2]
[329427480,1718333449575,-828.51,0.00024109,2]
[329427481,1718333449587,-500.0,0.00024109,2]
[329427482,1718333449600,-809.73,0.00024109,2]
[329427483,1718333449613,-500.0,0.00024109,2]
[329427484,1718333449639,-756.42,0.00024109,2]
[329427485,1718333449653,-1150.47,0.00024109,2]
[329427486,1718333449672,-500.0,0.00024109,2]
[329427487,1718333449684,-922.71,0.00024109,2]
[329427488,1718333449696,-500.0,0.00024109,2]
[329427489,1718333449710,-3335.38,0.00024109,2]
[329427490,1718333449720,-500.0,0.00024109,2]
[329427491,1718333449743,-2102.38,0.00024109,2]
[329427492,1718333449754,-500.0,0.00024109,2]
[329427493,1718333449772,-561.63,0.00024109,2]
[329427494,1718333449805,-533.97,0.00024109,2]
[329427495,1718333449818,-1093.34,0.00024109,2]
[329427496,1718333449829,-500.0,0.00024109,2]
[329427497,1718333449839,-500.0,0.00024109,2]
[329427498,1718333449851,-500.0,0.00024109,2]
[329427499,1718333449882,-510.99,0.00024109,2]
[329427500,1718333449918,-500.0,0.00024109,2]
[329427501,1718333449956,-500.0,0.00024109,2]
[329427502,1718333449976,-1556.14,0.00024109,2]
[329427503,1718333449989,-500.0,0.00024109,2]
[329427504,1718333450005,-500.0,0.00024109,2]
[329427505,1718333450018,-642.84,0.00024109,2]
[329427506,1718333450029,-2196.77,0.00024109,2]
[329427507,1718333450045,-500.0,0.00024109,2]
[329427508,1718333450057,-500.0,0.00024109,2]
[329427509,1718333450068,-416.34,0.00024109,2]
[329427510,1718333450080,-500.0,0.00024109,2]
[329427511,1718333450098,-604.6,0.00024109,2]
[329427512,1718333450120,-656.37,0.00024109,2]
[329427513,1718333450153,-500.0,0.00024109,2]
[329427514,1718333450163,-500.0,0.00024109,2]
[329427515,1718333450180,-500.0,0.00024109,2]
[329427516,1718333450193,-7699.1,0.00024109,2]